[Event "26th Hit Open-A 2022"]
[Site "Nova Gorica"]
[Date "2022.09.21"]
[Round "8.18"]
[White "Van Dael, Siem"]
[Black "Gregoric, Andraz"]
[Result "1-0"]
[ECO "C54"]
[WhiteElo "2316"]
[BlackElo "2182"]
[Annotator "TA"]
[PlyCount "71"]
[EventDate "2022.09.16"]
[EventType "swiss"]
[EventCountry "SLO"]
[SourceTitle "playchess.com"]
[Source "ChessBase"]
[SourceQuality "1"]
[TimeControl "5400+30"]

{[%evp 9,70,0,0,-41,-29,-30,-33,-44,-27,-34,-47,-44,15,27,10,30,25,21,36,-141,-123,-113,108,100,126,137,149,0,0,0,0,0,0,0,0,0,298,291,298,275,29990,-884,29991,29992,29992,29993,29993,29994,29994,29995,29996,29997,29997,29997,29997,29998,29998,29997,29997,29998,29998,29999,29999]} 1. e4 {[%emt 0:14:39]} e5 {[%emt 0:00:05]} 2. Nf3 {[%emt 0:00:08]} Nc6 {[%emt 0:00:03]} 3. Bc4 {[%emt 0:00:04]} Bc5 {[%emt 0:00:03]} 4. c3 {[%emt 0:00:06]} Nf6 {[%emt 0:00:02]} 5. d4 {[%emt 0:00:05]} exd4 {[%emt 0:00:04]} 6. b4 {[%emt 0:00:06] C54: Giuoco Piano: 4 c3 Nf6, main lines with 5 d4 and 5 d3.} Bb6 {[%emt 0:04:31]} 7. e5 {[%emt 0:00:45][%cal Be4e5,Be5f6,Bf6g7][%mdl 32]} d5 {[%emt 0:01:51]} 8. exf6 {[%emt 0:00:06] Black is slightly better.} dxc4 {[%emt 0:00:02]} 9. Qe2+ {[%emt 0:00:07] 9.Qe2+ scores better than 9.b5.} Be6 $1 {[%emt 0:00:20]} (9... Kf8 10. b5 Na5 11. Qe5 $14) 10. b5 $1 {[%emt 0:00:03]} d3 {[%emt 0:20:21]} (10... Na5 $1 $15 11. fxg7 Rg8) 11. Qe4 $1 $36 {[%emt 0:01:38][%mdl 2048] Black is under pressure.} Nb4 $1 {[%emt 0:00:39]} 12. O-O $1 {[%emt 0:05:41] Active counter play!} Nc2 {[%emt 0:05:27]} 13. fxg7 {[%emt 0:00:28]} Rg8 {[%emt 0:00:03] [#]} 14. Qxh7 $146 {[%emt 0:00:08]} (14. Bg5 $14 Qd5 15. Qxh7) ({Predecessor:} 14. Bg5 Qd5 15. Qxh7 Kd7 16. Nbd2 Bf5 17. Qh5 Rxg7 18. Bf6 Rh7 19. Qg5 Re8 20. Nxc4 Nxa1 {1-0 (31) Clarke,B (2445)-Kotyk,M (2170) Hamburg 2022}) 14... f6 $1 $17 {[%emt 0:06:21]} 15. Qg6+ {[%emt 0:20:17]} (15. Qe4 Kf7 16. Na3 Nxa1 $19) 15... Kd7 $2 {[%emt 0:11:54] [#]} (15... Bf7 $1 $17 {[%cal Rf7g6] keeps the pressure on.} 16. Qh6 (16. Qe4+ $2 Kd7 $19) 16... Qe7) 16. Bg5 $1 $16 {[%emt 0:00:15][%cal Ob1d2][%mdl 512]} fxg5 {[%emt 0:00:13]} (16... Nxa1 17. Nbd2) 17. Ne5+ {[%emt 0:00:11]} Ke7 {[%emt 0:00:05]} 18. Qxg5+ {[%emt 0:00:13]} (18. Nd2 $16 Qd5 19. Qxg5+ Ke8 20. Rab1 (20. Ndxc4 Nxa1 21. Qg6+ Ke7 $11)) 18... Kd6 $11 {[%emt 0:00:07]} 19. Qf4 {[%emt 0:00:13][%csl LRc4,LRd3] Nd2 is the strong threat. The board is on fire.} Kc5 {[%emt 0:00:54]} (19... Nxa1 20. Nd2 Bd5 21. Re1 $18) 20. a4 $1 {[%emt 0:02:29] Strongly threatening Nd2.} Ba5 {[%emt 0:18:45] aiming for ...Qe7.} (20... Nxa1 {leads to mate.} 21. Nd2 Kd6 22. Ne4+ Kd5 23. Nf7 Bd4 24. cxd4 c3 25. Qe5+ Kc4 26. Qc5+ Kb3 27. Rxa1) (20... Rxg7 $5 21. Nd2 $8 Ba5 $11) 21. Nd2 {[%emt 0:01:45]} Rxg7 {[%emt 0:02:22] Hoping for ...Qg8.} 22. Nexc4 {[%emt 0:33:08] Intending Nb3+ and mate. Pair of Knights!} Bxc3 $4 {[%emt 0:10:35][%mdl 8192]} (22... Rxg2+ $1 $11 23. Kxg2 Qg8+ 24. Kh1 Bxc4) 23. Nb3+ $18 {[%emt 0:00:55]} Kb4 {[%emt 0:01:17] [#]} 24. Nd6+ $1 {[%emt 0:00:58]} Kxb3 $2 {[%emt 0:00:39]} (24... Nd4 $18 25. Nxd4 Qxd6 26. Nc6+ Kc5 27. Qe3+ (27. Qc1 $2 Rag8 $19) 27... Kc4 28. Qe4+ Kb3 29. Rfb1+ Bb2 30. Nd4+ Kc3 31. Nxe6 Bxa1) 25. Rfb1+ {[%emt 0:00:04]} Bb2 {[#]} 26. Rxb2+ $1 {[%emt 0:00:05][%mdl 576] Remove Defender, Decoy. White mates.} Kxb2 {[%emt 0:00:40]} 27. Qe5+ {[%emt 0:00:05]} Kb3 {[%emt 0:00:37]} 28. Qxe6+ {[%emt 0:00:05]} Kc3 {[%emt 0:02:48]} 29. Qe5+ {[%emt 0:04:24]} Nd4 {[%emt 0:00:45]} 30. Qc5+ {[%emt 0:00:17]} Kb3 {[%emt 0:00:59]} 31. Qa3+ {[%emt 0:00:52]} Kc2 {[%emt 0:00:10]} 32. Rc1+ {[%emt 0:00:13]} Kd2 {[%emt 0:00:04]} 33. Ne4+ {[%emt 0:00:08]} Ke2 {[%emt 0:00:04] [#]} 34. Re1+ $3 {[%emt 0:00:04][%mdl 576] Decoy} Kxe1 {[%emt 0:00:13]} 35. Qc1+ {[%emt 0:00:03]} Ke2 {[%emt 0:00:06]} 36. Nc3# {[%emt 0:00:03] Weighted Error Value: White=0.16 (very precise) /Black=0.38} 1-0

[Event "26th Hit Open-A 2022"]
[Site "Nova Gorica"]
[Date "2022.09.21"]
[Round "8.19"]
[White "Gschiel, Alexander"]
[Black "Goroshkov, Maksym"]
[Result "1-0"]
[ECO "C68"]
[WhiteElo "2196"]
[BlackElo "2315"]
[Annotator "TA"]
[PlyCount "83"]
[EventDate "2022.09.16"]
[EventType "swiss"]
[EventCountry "SLO"]
[SourceTitle "playchess.com"]
[Source "ChessBase"]
[SourceQuality "1"]
[TimeControl "5400+30"]

{[%evp 14,83,14,8,4,14,18,8,0,-12,12,0,27,24,25,22,20,13,13,15,12,13,65,72,75,25,29,51,91,48,47,49,104,85,100,72,83,79,127,135,142,120,238,69,72,83,446,432,414,410,634,562,29958,29959,29959,29956,29957,29961,12842,12851,29970,29971,29970,29972,29968,29959,29955,29952,29945,29940,29998,29999]} 1. e4 {[%emt 0:00:04]} e5 {[%emt 0:00:56]} 2. Nf3 {[%emt 0:00:18]} Nc6 {[%emt 0:00:33]} 3. Bb5 {[%emt 0:00:18]} a6 {[%emt 0:00:04]} 4. Bxc6 {[%emt 0:00:20]} dxc6 {[%emt 0:00:04]} 5. d4 {[%emt 0:00:23]} exd4 {[%emt 0:00:50]} 6. Qxd4 {[%emt 0:00:11]} Qxd4 {[%emt 0:02:57]} 7. Nxd4 {[%emt 0:00:02]} Nf6 {[%emt 0:06:21]} 8. Nc3 {[%emt 0:04:14]} Bc5 {[%emt 0:02:47] C68: Ruy Lopez: Exchange Variation, sidelines.} 9. Nb3 {[%emt 0:05:55]} Bb4 {[%emt 0:00:21] [#]} 10. f3 $146 {[%emt 0:01:20]} ({Predecessor:} 10. O-O O-O 11. f3 h6 12. Bf4 Ne8 13. Rad1 b6 14. a3 Be7 15. Rd2 Bd6 16. e5 {0-1 (25) Petrovic,D (1636)-Zdravkovic,D (1826) Nis 2014}) 10... Be6 {[%emt 0:00:37] The position is equal.} 11. a3 {[%emt 0:06:48]} Bxb3 {[%emt 0:04:43]} 12. cxb3 {[%emt 0:02:44]} Bc5 {[%emt 0:00:07]} 13. Ke2 {[%emt 0:08:10]} Bd4 {[%emt 0:02:02]} 14. Be3 {[%emt 0:17:28]} c5 {[%emt 0:00:43]} 15. b4 {[%emt 0:00:08]} Bxe3 {[%emt 0:02:09]} 16. Kxe3 {[%emt 0:00:03]} cxb4 {[%emt 0:00:42]} 17. axb4 {[%emt 0:00:01]} O-O {[%emt 0:01:46]} (17... O-O-O $11) 18. Rhd1 $14 {[%emt 0:04:50]} Rfd8 {[%emt 0:01:23]} 19. Rxd8+ {[%emt 0:06:17]} ({Better is} 19. b5 $16) 19... Rxd8 $16 {[%emt 0:00:00][%mdl 4096] Endgame KRN-KRN} 20. b5 {[%emt 0:00:10]} Rd6 {[%emt 0:04:19]} 21. e5 {[%emt 0:14:11][%csl LRd6,LRf6]} Re6 {[%emt 0:00:08]} 22. f4 {[%emt 0:00:18]} h6 {[%emt 0:03:42]} (22... g5 $14) 23. bxa6 {[%emt 0:02:28]} bxa6 {[%emt 0:00:06]} 24. Ra5 {[%emt 0:03:11]} Nd7 {[%emt 0:00:19]} 25. Rd5 {[%emt 0:01:56]} Nb6 {[%emt 0:00:14] [#]} ({Black should try} 25... Nf8) 26. Rd8+ $1 {[%emt 0:00:01]} Kh7 {[%emt 0:00:05]} 27. Kd4 {[%emt 0:00:38] White is more active.} f6 {[%emt 0:04:02] [#]} (27... Rc6 $16) 28. Nd5 $2 {[%emt 0:03:24]} (28. Ne4 $1 $18) 28... fxe5+ {[%emt 0:01:49]} 29. fxe5 {[%emt 0:01:02]} c5+ {[%emt 0:00:53][%mdl 8192] A mistake that costs the game.} (29... Rg6 $16) 30. Kxc5 $18 {[%emt 0:00:00]} Na4+ {[%emt 0:00:22]} 31. Kd4 {[%emt 0:00:32] Hoping for Rd6.} Nxb2 {[%emt 0:00:03]} (31... a5 $142 32. Rd6 Nc5 33. Kxc5 Rxe5) 32. Rd6 {[%emt 0:03:15]} Rxe5 {[%emt 0:00:22]} 33. Kxe5 {[%emt 0:00:37]} Nc4+ {[%emt 0:00:02]} 34. Ke6 {[%emt 0:00:07]} Nxd6 {[%emt 0:00:03]} 35. Kxd6 {[%emt 0:00:05] KN-K3P} Kg6 {[%emt 0:00:03]} 36. Ke6 {[%emt 0:03:45] White threatens Nc3 and mate.} a5 {[%emt 0:00:05]} 37. Nc3 {[%emt 0:00:02] White mates.} Kg5 {[%emt 0:00:13]} 38. Kf7 {[%emt 0:00:18]} g6 {[%emt 0:00:06]} 39. Ke6 {[%emt 0:03:48]} h5 {[%emt 0:00:03]} 40. Ke5 {[%emt 0:01:34]} Kg4 {[%emt 0:00:22]} 41. Ne4 {[%emt 0:01:00]} g5 {[%emt 0:01:09]} 42. Nf2+ {[%emt 0:00:05] Weighted Error Value: White=0.23 (precise) /Black=0.88} 1-0

[Event "26th Hit Open-A 2022"]
[Site "Nova Gorica"]
[Date "2022.09.21"]
[Round "8.20"]
[White "Sharan, Rao"]
[Black "Budai, Leonardo"]
[Result "1-0"]
[ECO "A05"]
[WhiteElo "2312"]
[BlackElo "1676"]
[Annotator "TA"]
[PlyCount "101"]
[EventDate "2022.09.16"]
[EventType "swiss"]
[EventCountry "SLO"]
[SourceTitle "playchess.com"]
[Source "ChessBase"]
[SourceQuality "1"]
[TimeControl "5400+30"]

{[%evp 9,101,0,0,0,0,3,0,12,8,8,0,4,7,0,4,4,106,118,114,112,121,106,192,119,127,125,133,130,129,128,130,109,112,112,119,108,125,124,237,208,235,175,185,187,189,185,300,209,417,397,520,332,353,251,244,226,230,207,472,287,388,388,387,368,405,385,533,533,518,517,487,481,452,407,657,629,5675,5281,4814,905,1937,1161,7232,8505,29972,29970,29978,29979,29980,29980,29991,29992,29992,29989]} 1. Nf3 {[%emt 0:00:03]} Nf6 {[%emt 0:00:12]} 2. b3 {[%emt 0:00:04]} b6 {[%emt 0:00:57]} 3. Bb2 {[%emt 0:00:05]} Bb7 {[%emt 0:00:20]} 4. e3 {[%emt 0:00:04]} e6 {[%emt 0:00:54]} 5. Be2 {[%emt 0:00:04]} Be7 {[%emt 0:00:15]} 6. O-O {[%emt 0:00:05] A05: Réti Opening: 1 Nf3 Nf6.} O-O {[%emt 0:00:16]} 7. d4 {[%emt 0:00:03]} d5 {[%emt 0:02:45]} 8. Nbd2 {[%emt 0:00:05] The position is equal.} Nbd7 {[%emt 0:00:34]} 9. c4 {[%emt 0:00:06]} c5 {[%emt 0:17:54]} 10. Rc1 {[%emt 0:00:06]} Rc8 {[%emt 0:00:44]} 11. Rc2 {[%emt 0:00:21]} Rc7 {[%emt 0:04:26]} 12. Qa1 {[%emt 0:02:31] [#]} Ne4 $146 {[%emt 0:05:28]} (12... cxd4 $11 {keeps the balance.} 13. Nxd4 Qb8) ({Predecessor:} 12... dxc4 13. bxc4 a6 14. Rd1 Qb8 {½-½ (14) Comas Fabrego,L (2469)-Porras Mateo,F (2349) Barcelona 2018}) 13. dxc5 $16 {[%emt 0:01:21]} Bf6 {[%emt 0:11:54]} 14. cxb6 {[%emt 0:00:59]} axb6 {[%emt 0:00:09]} 15. Rfc1 {[%emt 0:06:17][%cal Bf1c1,Bc1c2,Bc2c4][%mdl 32]} Qc8 {[%emt 0:02:41]} (15... Nxd2 $16 {might work better.} 16. Nxd2 (16. Rxd2 Bxb2 17. Qxb2 Qf6 $16) 16... Bxb2 17. Qxb2 Ba6) 16. Qb1 {[%emt 0:04:49]} (16. Nxe4 $18 Bxb2 17. Qxb2 dxe4 18. Ne5) 16... Nxd2 {[%emt 0:02:57]} 17. Nxd2 {[%emt 0:00:30]} Qa8 {[%emt 0:07:22]} 18. cxd5 {[%emt 0:03:38]} Rxc2 {[%emt 0:00:27]} 19. Rxc2 {[%emt 0:00:17]} Bxd5 {[%emt 0:01:03]} 20. Bf3 {[%emt 0:00:37]} Bxb2 {[%emt 0:01:39]} 21. Qxb2 {[%emt 0:00:58]} Nc5 {[%emt 0:02:39]} 22. Rc4 {[%emt 0:11:26]} Bxf3 {[%emt 0:13:55]} 23. Nxf3 {[%emt 0:00:08]} (23. gxf3 $6 Nd3 24. Qc2 Ne5 $14) 23... f6 {[%emt 0:01:33]} (23... Rd8 $16 {was necessary.} 24. h3 h6) 24. h3 {[%emt 0:01:16]} e5 {[%emt 0:02:13]} 25. b4 {[%emt 0:02:26]} Qd5 {[%emt 0:07:09]} 26. Qc2 {[%emt 0:02:20]} ({Worse is} 26. bxc5 Qxc4 27. cxb6 Rb8 $17) 26... Ne6 {[%emt 0:03:13]} 27. a4 {[%emt 0:11:00][%cal Ba2a4,Ba4a5][%mdl 32] [#] aiming for Rc6.} Ra8 {[%emt 0:02:11]} (27... Rd8 $142 28. Rc8 Rxc8 29. Qxc8+ Nf8) 28. Nh4 {[%emt 0:04:43] Hoping for Rc6.} Kf7 $2 {[%emt 0:04:21]} (28... Rd8 29. Rc6 Nc5) 29. Rc6 $18 {[%emt 0:01:43]} b5 {[%emt 0:01:05]} 30. a5 {[%emt 0:01:23]} g6 {[%emt 0:00:23]} 31. Nf3 {[%emt 0:02:24] Threatens to win with a6.} Rd8 {[%emt 0:01:24]} 32. Rb6 {[%emt 0:03:35] [#] And now a6 would win.} Ke7 {[%emt 0:01:31]} 33. Qc3 {[%emt 0:05:03] Black must now prevent a6.} Kd7 $2 {[%emt 0:01:09]} (33... Rd6 34. Rxd6 Qxd6) 34. Qd2 {[%emt 0:06:16]} ({Not} 34. e4 Qc4 35. Qe3 (35. Nxe5+ fxe5 36. Qxe5 Qc1+ 37. Kh2 Qf4+ 38. Qxf4 Nxf4 $16) 35... Rc8 36. Rb7+ (36. Qe1 Rc6 $16) 36... Rc7 $18) 34... Qxd2 {[%emt 0:00:29]} 35. Nxd2 {[%emt 0:00:02][%mdl 4096] Endgame KRN-KRN} Nc7 {[%emt 0:00:25]} 36. Ne4 {[%emt 0:05:24]} f5 {[%emt 0:00:56]} 37. Nc3 {[%emt 0:00:06]} e4 {[%emt 0:00:38]} 38. Nxb5 {[%emt 0:03:48]} Nxb5 {[%emt 0:00:05]} 39. Rxb5 {[%emt 0:00:03] KR-KR} Kc6 {[%emt 0:00:05] Against Rb7} 40. Rb6+ {[%emt 0:01:15]} Kc7 {[%emt 0:00:06]} 41. b5 {[%emt 0:00:28][%cal Bb4b5,Bb5b6][%mdl 32] Strongly threatening Rc6+.} Rd2 {[%emt 0:00:11]} (41... Rd1+ $142 42. Kh2 Rd5) 42. Rc6+ {[%emt 0:00:25]} Kb7 {[%emt 0:00:05]} 43. a6+ {[%emt 0:00:20]} Kb8 {[%emt 0:00:48]} 44. Rf6 {[%emt 0:00:07]} (44. b6 $142 Rd8 45. Rc7) 44... Rd8 {[%emt 0:00:50]} 45. b6 {[%emt 0:00:06]} Rg8 {[%emt 0:00:23]} 46. Kh2 {[%emt 0:00:03] White threatens Kg3 and mate.} h6 {[%emt 0:00:34]} 47. Kg3 {[%emt 0:00:22] White mates.} Ka8 {[%emt 0:00:28]} 48. Kf4 {[%emt 0:00:05]} Kb8 {[%emt 0:00:08]} 49. Ke5 {[%emt 0:00:06]} Re8+ {[%emt 0:00:18]} 50. Kd6 {[%emt 0:00:11]} Rg8 {[%emt 0:00:06]} 51. Ke7 {[%emt 0:00:05] Weighted Error Value: White=0.37/Black=0.67} 1-0

[Event "26th Hit Open-A 2022"]
[Site "Nova Gorica"]
[Date "2022.09.21"]
[Round "8.21"]
[White "Callsen, Niklas"]
[Black "Mostbauer, Florian"]
[Result "0-1"]
[ECO "B12"]
[WhiteElo "2079"]
[BlackElo "2295"]
[Annotator "TA"]
[PlyCount "72"]
[EventDate "2022.09.16"]
[EventType "swiss"]
[EventCountry "SLO"]
[SourceTitle "playchess.com"]
[Source "ChessBase"]
[SourceQuality "1"]
[TimeControl "5400+30"]

{[%evp 9,72,5,9,3,4,8,13,10,11,0,10,-19,-25,-15,-31,-51,-34,-56,-46,-89,0,-31,-29,-26,-26,-78,-70,-88,-89,-62,-34,-46,-34,-36,-37,-30,-25,-87,-94,-122,-146,-148,-123,-407,-374,-400,-391,-382,-377,-687,-671,-833,-840,-832,-830,-1077,-1009,-29945,-6810,-6393,-6374,-29982,-29983,-29987,-29988]} 1. e4 {[%emt 0:00:04]} c6 {[%emt 0:00:10]} 2. d4 {[%emt 0:00:06]} d5 {[%emt 0:00:09]} 3. e5 {[%emt 0:00:05]} Bf5 {[%emt 0:00:28]} 4. h4 {[%emt 0:00:07]} a6 {[%emt 0:00:19]} 5. Nc3 {[%emt 0:04:18]} h5 {[%emt 0:00:09]} 6. Bd3 {[%emt 0:06:46] B12: Caro-Kann: Advance Variation.} Bxd3 {[%emt 0:00:09]} 7. Qxd3 {[%emt 0:00:06][%cal Oe5e6] e6! is the strong threat.} e6 $1 {[%emt 0:00:12]} 8. Nf3 {[%emt 0:00:36] The position is equal.} c5 {[%emt 0:02:34]} 9. Bg5 {[%emt 0:05:41]} Qc7 {[%emt 0:02:26]} 10. dxc5 {[%emt 0:01:14]} Bxc5 {[%emt 0:01:31]} 11. O-O {[%emt 0:02:18][%cal Oc3d5]} Nc6 {[%emt 0:03:34] [#]} 12. Rfe1 $146 {[%emt 0:04:05]} ({Predecessor:} 12. a3 Rc8 13. Rfe1 Nge7 14. Bf4 Qb6 15. Bg3 Nf5 16. Na4 Qa7 17. Nxc5 Qxc5 18. Bf4 {½-½ (64) Alboredo,J (2264)-Heredia Serrano,C (2090) Chennai 2022}) 12... Nge7 {[%emt 0:02:17]} 13. a3 {[%emt 0:07:42]} Ng6 {[%emt 0:08:47]} 14. b4 {[%emt 0:07:22]} Be7 {[%emt 0:05:00]} ({Black should try} 14... Ba7 $17 {aiming for ...Rc8.} 15. Re2 Rc8) 15. Bxe7 {[%emt 0:13:27]} (15. Nxd5 $5 exd5 16. e6 $11) 15... Ncxe7 {[%emt 0:01:25]} 16. Na4 {[%emt 0:07:29]} O-O {[%emt 0:06:02]} 17. Nc5 {[%emt 0:02:37]} (17. Rac1 $11) 17... Rfc8 {[%emt 0:06:01]} 18. Rac1 {[%emt 0:10:19]} a5 {[%emt 0:02:30]} 19. Ng5 {[%emt 0:00:59]} axb4 {[%emt 0:17:32]} (19... b6 $5 {[%cal Rb6c5]} 20. Nb3 Nf5 $17) 20. axb4 {[%emt 0:01:06]} b6 $1 {[%emt 0:01:38]} 21. Qf3 {[%emt 0:00:41][%csl LRf7,LRh5]} Nf5 {[%emt 0:06:05]} 22. Nd3 {[%emt 0:01:53]} Qc4 {[%emt 0:02:30]} 23. g3 {[%emt 0:03:51]} (23. Qxh5 $11 {remains equal.} Qxh4 24. Qxh4 Ngxh4 25. Nf4) 23... Qg4 $17 {[%emt 0:01:31] Black is more active.} 24. Qxg4 {[%emt 0:05:16]} hxg4 {[%emt 0:00:09]} 25. Ra1 {[%emt 0:01:03]} Nf8 {[%emt 0:15:59] Strongly threatening ...Rxa1.} 26. Rec1 {[%emt 0:02:04][%mdl 8192] Now White is beyond hope.} (26. Rxa8 $17 {was necessary.} Rxa8 27. f3) 26... Rxa1 $19 {[%emt 0:00:34]} 27. Rxa1 {[%emt 0:00:05] [#]} f6 $1 {[%emt 0:00:18]} ({Worse is} 27... Rxc2 28. Ra7 $15) 28. Nxe6 {[%emt 0:01:35]} ({Don't play} 28. exf6 gxf6 29. Nxe6 Nxe6 $19) 28... Nxe6 {[%emt 0:00:32]} 29. Ra6 $2 {[%emt 0:00:24]} (29. exf6 gxf6 30. Ra2) 29... Rxc2 {[%emt 0:01:24]} 30. Rxb6 {[%emt 0:00:17]} Nfd4 {[%emt 0:00:26]} 31. exf6 {[%emt 0:00:55]} gxf6 {[%emt 0:00:13][%cal Bg7f6,Bf6f5][%mdl 32]} 32. Rd6 {[%emt 0:01:03]} Rd2 {[%emt 0:00:32]} 33. Ne1 {[%emt 0:00:43]} Rd1 {[%emt 0:06:59]} 34. Kf1 {[%emt 0:00:09] [#]} Nf3 $1 {[%emt 0:00:17]} 35. Rxe6 {[%emt 0:00:24]} (35. Ke2 Rxe1+) 35... d4 {[%emt 0:00:13]} 36. Re4 {[%emt 0:03:19]} f5 {[%emt 0:00:35] Weighted Error Value: White=0.72/Black=0.07 (flawless)} ({And not} 36... Nd2+ 37. Ke2 Rxe1+ 38. Kxe1 $19) 0-1

[Event "26th Hit Open-A 2022"]
[Site "Nova Gorica"]
[Date "2022.09.21"]
[Round "8.22"]
[White "Debevec, Blaz"]
[Black "Nyysti, Sampsa"]
[Result "0-1"]
[ECO "B80"]
[WhiteElo "2056"]
[BlackElo "2363"]
[Annotator "TA"]
[PlyCount "106"]
[EventDate "2022.09.16"]
[EventType "swiss"]
[EventCountry "SLO"]
[SourceTitle "playchess.com"]
[Source "ChessBase"]
[SourceQuality "1"]
[TimeControl "5400+30"]

{[%evp 15,106,21,22,10,18,0,2,-14,0,-20,0,0,0,0,0,0,0,-12,-24,-17,0,-24,-16,-9,-16,-21,-14,-22,-23,-35,0,-19,-21,-31,-28,-25,-27,-37,-38,-54,-37,-49,-46,-52,-53,-79,-78,-70,-26,-20,-4,-16,-45,-10,0,-115,-104,-100,-107,-175,-129,-308,-291,-235,-213,-379,-327,-1291,-1279,-1045,-978,-29939,-12819,-5413,-5093,-5409,-5057,-29964,-29965,-29989,-29990,-29990,-29991,-29991,-29992,-29992,-29993,-29994,-29995,-29995,-29996,-29997,-29998]} 1. e4 {[%emt 0:00:03]} c5 {[%emt 0:00:03]} 2. Nf3 {[%emt 0:00:06]} e6 {[%emt 0:00:08]} 3. g3 {[%emt 0:00:16]} d6 {[%emt 0:05:31]} 4. Bg2 {[%emt 0:00:27]} Nf6 {[%emt 0:00:14]} 5. Nc3 {[%emt 0:00:13]} Be7 {[%emt 0:00:12]} 6. O-O {[%emt 0:00:13]} O-O {[%emt 0:00:16]} 7. d4 {[%emt 0:00:17]} cxd4 {[%emt 0:00:02]} 8. Nxd4 {[%emt 0:00:08]} a6 {[%emt 0:09:22]} 9. Qe2 {[%emt 0:05:49] B80: Sicilian Scheveningen: 6 g3 and 6 Be3, including English Attack.} Qc7 {[%emt 0:01:31]} 10. h3 {[%emt 0:02:18]} Nc6 {[%emt 0:00:45]} 11. Be3 {[%emt 0:04:46] The position is equal.} Rb8 {[%emt 0:06:12]} 12. Rad1 {[%emt 0:00:57]} Re8 {[%emt 0:05:21]} 13. f4 {[%emt 0:01:46] [#]} Nxd4 $146 {[%emt 0:01:55]} ({Predecessor:} 13... Na5 14. Bc1 Nd7 15. Qh5 Bf6 16. Kh2 b5 17. f5 Bb7 18. Nce2 g6 19. fxg6 hxg6 {0-1 (40) Almasi,I (2280)-Horvath,C (2460) Budapest 1991}) 14. Bxd4 {[%emt 0:00:23]} e5 {[%emt 0:00:19]} 15. Ba7 {[%emt 0:08:24] Hoping for fxe5.} Ra8 {[%emt 0:00:07]} 16. Bf2 {[%emt 0:03:01]} Be6 {[%emt 0:14:25]} 17. Qd2 {[%emt 0:04:13]} Rac8 {[%emt 0:12:45]} 18. Rfe1 {[%emt 0:06:10]} b5 {[%emt 0:01:11]} 19. a3 {[%emt 0:00:20]} Qb8 {[%emt 0:03:24]} 20. Nd5 {[%emt 0:08:32]} Bxd5 {[%emt 0:00:24]} 21. exd5 {[%emt 0:00:06]} exf4 {[%emt 0:00:53]} 22. gxf4 {[%emt 0:04:27]} Nd7 {[%emt 0:03:57]} 23. c3 {[%emt 0:00:00]} Bf6 {[%emt 0:03:01]} 24. Rxe8+ {[%emt 0:00:00]} Rxe8 {[%emt 0:00:01]} 25. Re1 {[%emt 0:00:00]} Rxe1+ {[%emt 0:02:08]} 26. Qxe1 {[%emt 0:00:14]} g6 {[%emt 0:01:15]} 27. Kf1 {[%emt 0:02:39]} Kg7 {[%emt 0:00:09]} 28. Qe4 {[%emt 0:01:19]} Nb6 {[%emt 0:00:52]} 29. Bd4 {[%emt 0:06:38]} Qd8 {[%emt 0:00:22] aiming for ...Nc4.} 30. b3 {[%emt 0:01:36] Inhibits Nc4.} Nd7 {[%emt 0:00:31]} 31. b4 {[%emt 0:05:14]} Nb6 {[%emt 0:02:28] Strongly threatening ...Nc4.} 32. Ke2 {[%emt 0:01:53]} Na4 {[%emt 0:03:56]} 33. Kd2 {[%emt 0:02:36]} Bxd4 {[%emt 0:04:09]} 34. Qxd4+ {[%emt 0:00:05]} Qf6 {[%emt 0:00:04]} (34... Kg8 {is interesting.} 35. Bf1 Qh4 36. c4 bxc4 37. Qe3 Qf6) 35. Qxf6+ {[%emt 0:00:14]} (35. Kd3 $1 $11 {remains equal.}) 35... Kxf6 $11 {[%emt 0:00:02][%mdl 4096] Endgame KB-KN} 36. Be4 {[%emt 0:00:13] [#]} Nb6 $1 {[%emt 0:03:46] And now ...Nc4+ would win.} 37. Kd3 {[%emt 0:21:18]} (37. Bd3 $17) 37... h6 {[%emt 0:00:41]} (37... Nc4 $19 38. a4 Nb2+ 39. Kd4 Nxa4) 38. h4 $2 {[%emt 0:01:18] This costs White the game.} (38. Kd4 $17 {was forced.}) 38... g5 $19 {[%emt 0:00:35]} 39. fxg5+ {[%emt 0:01:54]} hxg5 {[%emt 0:00:02]} 40. hxg5+ {[%emt 0:00:12]} (40. h5 {only move.}) 40... Kxg5 {[%emt 0:00:03]} 41. Kd4 $2 {[%emt 0:00:17]} (41. Kc2 Kf4 42. Bd3) 41... f5 {[%emt 0:02:23]} 42. Bd3 {[%emt 0:00:17] [#]} f4 $1 {[%emt 0:01:26] ...Kg4 is the strong threat.} 43. a4 {[%emt 0:04:52]} bxa4 {[%emt 0:01:41] ( -> ...a3)} 44. c4 {[%emt 0:01:01]} f3 {[%emt 0:05:34]} 45. Kc3 {[%emt 0:03:32]} Kf4 {[%emt 0:01:27]} 46. Kb2 {[%emt 0:01:01]} Ke3 {[%emt 0:00:13] Black mates.} 47. c5 {[%emt 0:01:35]} Kxd3 {[%emt 0:02:36]} 48. cxb6 {[%emt 0:00:27] KP-KP} f2 {[%emt 0:00:04]} 49. b7 {[%emt 0:00:06]} f1=Q {[%emt 0:00:11]} 50. b8=Q {[%emt 0:00:10]} Qe2+ {[%emt 0:01:33]} 51. Kb1 {[%emt 0:01:47]} Qc2+ {[%emt 0:00:38]} 52. Ka1 {[%emt 0:00:02]} Qc3+ {[%emt 0:00:12]} 53. Kb1 {[%emt 0:01:00]} a3 {[%emt 0:00:17] Weighted Error Value: White=0.67/Black=0.05 (flawless)} 0-1